bitfinex/quotes_SOLUSD_20250902
["timestamp","ask_amount","ask_price","bid_price","bid_amount"]
[1756821370559,0.06,204.39,204.38,11.411]
[1756821371192,12.97504568,204.39,204.38,11.411]
[1756821371563,58.11504568,204.39,204.38,11.411]
[1756821372603,58.09504568,204.39,204.38,11.411]
[1756821374297,62.98765295,204.39,204.38,11.411]
[1756821374592,58.07504568,204.39,204.38,11.411]
[1756821375089,12.97504568,204.39,204.38,11.411]
[1756821375264,45.87,204.39,204.38,11.411]
[1756821375462,0.06,204.39,204.38,11.411]
[1756821375680,0.06,204.39,204.38,23.61604568]
[1756821377582,0.06,204.39,204.38,19.46109262]
[1756821377988,0.06,204.39,204.38,11.411]
[1756821379284,0.06,204.39,204.38,19.46109262]
[1756821379670,0.06,204.39,204.38,11.411]
[1756821379879,0.06,204.39,204.38,19.46109262]
[1756821380265,8.82009262,204.39,204.38,11.411]
[1756821380770,0.06,204.39,204.38,11.411]
[1756821380972,0.77,204.39,204.38,11.411]
[1756821381589,0.06,204.39,204.38,11.411]
[1756821381888,0.06,204.39,204.38,19.46109262]
[1756821382273,0.06,204.39,204.38,45.46109262]
[1756821384092,0.06,204.39,204.38,11.411]
[1756821384672,0.71,204.48,204.38,51.00659401]
[1756821384879,0.71,204.48,204.45,8.05009262]
[1756821385074,0.71,204.52,204.47,8.05009262]
[1756821385275,0.71,204.51,204.47,8.05009262]
[1756821385482,0.71,204.5,204.47,12.84677511]
[1756821385795,0.71,204.5,204.47,4.79668249]
[1756821385970,0.71,204.5,204.43,26.0]
[1756821386174,0.71,204.5,204.46,8.05009262]
[1756821386374,0.71,204.5,204.41,0.14216157]
[1756821386375,0.71,204.5,204.44,8.05009262]
[1756821386574,0.71,204.5,204.39,0.14216157]
[1756821386575,8.76009262,204.5,204.43,26.0]
[1756821386800,0.71,204.5,204.45,8.05009262]
[1756821387013,0.28432314,204.59,204.45,8.05009262]
[1756821387190,0.71,204.49,204.45,8.05009262]
[1756821387390,0.71,204.52,204.46,8.05009262]
[1756821387702,0.71,204.52,204.47,8.05009262]
[1756821388020,8.05009262,204.51,204.43,4.90780422]
[1756821388204,0.71,204.52,204.45,8.05009262]
[1756821388403,8.05009262,204.51,204.45,8.05009262]
[1756821388609,8.05009262,204.51,204.42,26.0]
[1756821388610,8.05009262,204.49,204.41,26.0]
[1756821388796,0.71,204.5,204.46,8.05009262]
[1756821389109,44.96,204.59,204.49,8.05009262]
[1756821389110,8.05009262,204.57,204.49,8.05009262]
[1756821389293,8.05009262,204.57,204.51,8.05009262]
[1756821389490,8.76009262,204.59,204.53,8.05009262]
[1756821389692,0.71,204.59,204.49,0.14216157]
[1756821389890,0.71,204.59,204.54,8.05009262]
[1756821390122,0.71,204.58,204.47,40.02207872]
[1756821390408,0.71,204.58,204.49,26.0]
[1756821390629,0.71,204.62,204.56,8.05009262]
[1756821390789,8.76009262,204.62,204.56,8.05009262]
[1756821390986,8.05009262,204.61,204.55,8.05009262]
[1756821391291,0.71,204.62,204.55,8.05009262]
[1756821391497,8.05009262,204.61,204.55,8.05009262]
[1756821391908,44.94,204.7,204.51,26.0]
[1756821391909,8.05009262,204.58,204.51,26.0]
[1756821392104,8.05009262,204.58,204.52,8.05009262]
[1756821392325,8.76009262,204.6,204.54,8.05009262]
[1756821392629,44.92,204.66,204.48,8.05009262]
[1756821392630,8.11009262,204.56,204.49,26.0]
[1756821392828,0.71,204.55,204.49,26.0]
[1756821392995,8.05009262,204.5,204.4,44.92]
[1756821393193,8.05009262,204.52,204.46,8.05009262]
[1756821393600,8.05009262,204.51,204.45,8.05009262]
[1756821393800,8.05009262,204.52,204.44,26.0]
[1756821394017,0.71,204.53,204.46,8.05009262]
[1756821394236,8.05009262,204.51,204.44,34.05009262]
[1756821394392,8.05009262,204.51,204.44,8.05009262]
[1756821394598,0.71,204.51,204.43,8.05009262]
[1756821394816,8.05009262,204.49,204.43,8.05009262]
[1756821395024,0.71,204.51,204.4,49.77269021]
[1756821395025,0.71,204.51,204.44,8.05009262]
[1756821395205,0.71,204.53,204.43,26.0]
[1756821395401,0.71,204.53,204.48,8.05009262]
[1756821395615,0.71,204.53,204.45,26.0]
[1756821395814,8.76009262,204.53,204.47,8.05009262]
[1756821396727,8.05009262,204.49,204.4,4.85269021]
[1756821397021,8.76009262,204.48,204.38,15.77612856]
[1756821397223,8.76009262,204.48,204.42,8.05009262]
[1756821397629,0.71,204.53,204.45,8.05009262]
[1756821397928,0.71,204.5,204.44,8.05009262]
[1756821398094,0.06,204.56,204.39,26.14216157]
[1756821398095,0.06,204.56,204.47,8.05009262]
[1756821398421,0.71,204.55,204.5,8.05009262]
[1756821398607,0.06,204.56,204.52,8.05009262]
[1756821398921,0.71,204.56,204.52,8.05009262]
[1756821399227,0.65,204.55,204.52,8.05009262]
[1756821399408,0.06,204.56,204.52,8.05009262]
[1756821399618,0.06,204.56,204.48,26.0]
[1756821399918,0.06,204.56,204.51,26.0]
[1756821400119,0.06,204.56,204.55,8.05009262]
[1756821400818,0.06,204.56,204.51,26.0]
[1756821400819,0.06,204.56,204.53,8.05009262]
[1756821401003,0.06,204.56,204.51,26.0]
[1756821401004,0.06,204.56,204.54,8.05009262]
[1756821401198,0.06,204.56,204.51,26.0]
[1756821401600,0.06,204.56,204.55,8.05009262]
[1756821402019,0.06,204.56,204.51,26.0]
[1756821402209,0.06,204.56,204.54,8.05009262]
[1756821402410,0.06,204.56,204.55,8.05009262]
[1756821402593,0.06,204.56,204.53,8.05009262]
[1756821403035,0.06,204.56,204.52,8.05009262]
[1756821403222,0.65,204.55,204.5,8.05009262]
[1756821403416,0.65,204.54,204.5,8.05009262]
[1756821404008,0.65,204.54,204.48,8.05009262]
[1756821404009,0.65,204.53,204.48,8.05009262]
[1756821404422,0.65,204.52,204.48,8.05009262]
[1756821404803,0.65,204.51,204.37,20.0]
[1756821405008,8.70009262,204.51,204.45,8.05009262]
[1756821405206,0.65,204.51,204.46,8.05009262]
[1756821405412,0.65,204.51,204.44,26.0]
[1756821405413,0.65,204.51,204.47,8.05009262]
[1756821405719,0.06,204.56,204.5,34.05009262]
[1756821405924,0.06,204.56,204.55,8.05009262]
[1756821407017,0.06,204.56,204.52,26.0]
[1756821407214,0.06,204.56,204.55,8.05009262]
[1756821409009,0.06,204.56,204.51,26.0]
[1756821409209,0.06,204.56,204.53,8.05009262]
[1756821410248,0.06,204.56,204.55,8.05009262]
[1756821410450,0.06,204.56,204.51,26.0]
[1756821410740,0.06,204.56,204.55,8.05009262]
[1756821412410,0.71,204.56,204.43,0.14216157]
[1756821412613,8.05009262,204.55,204.49,8.05009262]
[1756821412947,0.65,204.55,204.49,8.05009262]
[1756821413145,8.70009262,204.55,204.48,8.05009262]
[1756821413446,0.65,204.55,204.5,8.05009262]
[1756821413730,8.11009262,204.56,204.53,8.05009262]
[1756821413731,0.06,204.56,204.53,8.05009262]
[1756821413911,0.71,204.56,204.53,8.05009262]
[1756821414111,0.71,204.56,204.44,0.14216157]
[1756821414337,0.65,204.55,204.41,0.14216157]
[1756821414542,0.65,204.55,204.41,13.59559401]
[1756821414716,0.65,204.55,204.52,8.05009262]
[1756821415037,0.06,204.56,204.54,8.05009262]
[1756821415226,0.06,204.56,204.48,8.05009262]
[1756821415745,0.06,204.56,204.51,26.0]
[1756821415922,0.06,204.56,204.55,8.05009262]
[1756821417228,0.71,204.56,204.55,8.05009262]
[1756821417547,0.71,204.56,204.53,8.05009262]
[1756821417716,0.06,204.56,204.55,8.05009262]
[1756821419843,0.71,204.56,204.53,8.05009262]
[1756821420150,0.06,204.56,204.41,20.0]
[1756821420356,8.05009262,204.54,204.39,24.98398799]
[1756821420657,0.65,204.53,204.5,8.05009262]
[1756821421015,0.06,204.56,204.51,8.05009262]
[1756821421227,0.65,204.55,204.4,5.01088488]
[1756821421442,0.65,204.54,204.49,8.05009262]
[1756821421647,0.65,204.53,204.45,26.0]
[1756821421936,0.06,204.56,204.52,8.05009262]
[1756821422140,0.06,204.56,204.53,8.05009262]
[1756821422333,0.65,204.55,204.51,8.05009262]
[1756821422522,0.65,204.54,204.51,8.05009262]
[1756821422718,0.65,204.54,204.52,8.05009262]
[1756821422945,0.65,204.53,204.4,4.94944544]
[1756821423125,8.70009262,204.53,204.47,8.05009262]
[1756821423440,8.05009262,204.51,204.34,20.0]
[1756821423737,0.06,204.56,204.43,8.05009262]
[1756821423738,8.70009262,204.5,204.43,8.05009262]
[1756821423939,0.65,204.5,204.45,8.05009262]
[1756821424242,0.65,204.49,204.45,8.05009262]
[1756821424618,0.06,204.56,204.42,26.0]
[1756821424816,0.06,204.56,204.44,8.05009262]
[1756821425042,0.65,204.55,204.5,17.11491442]
[1756821425253,0.65,204.55,204.51,8.05009262]
[1756821425564,0.65,204.55,204.52,8.05009262]
[1756821425718,0.65,204.55,204.51,8.05009262]
[1756821425913,0.06,204.56,204.51,8.05009262]
[1756821426123,0.65,204.55,204.5,25.16500704]
[1756821426319,0.65,204.55,204.51,8.05009262]
[1756821426518,0.65,204.54,204.51,8.05009262]
[1756821426942,0.65,204.53,204.5,25.16500704]
[1756821427241,8.05009262,204.55,204.5,17.11491442]
[1756821427454,8.05009262,204.51,204.45,4.89117143]
[1756821427747,8.70009262,204.5,204.45,4.89117143]
[1756821427955,8.05009262,204.46,204.41,4.89208134]
[1756821428121,0.65,204.49,204.44,8.05009262]
[1756821428320,0.65,204.49,204.46,8.05009262]
[1756821428545,8.05009262,204.51,204.41,17.12240275]
[1756821428751,0.65,204.51,204.46,8.05009262]
[1756821428923,0.69,204.5,204.46,8.05009262]
[1756821429123,0.69,204.5,204.47,4.89069301]
[1756821429345,0.69,204.49,204.47,4.89069301]
[1756821429548,0.69,204.52,204.47,17.11742553]
[1756821429761,0.69,204.51,204.48,8.05009262]
[1756821429967,0.69,204.5,204.47,17.11742553]
[1756821430466,8.74009262,204.52,204.47,17.11742553]
[1756821430768,0.69,204.51,204.47,17.11742553]
[1756821430956,0.69,204.5,204.47,17.11742553]
[1756821431160,0.69,204.49,204.47,12.22673252]
[1756821431478,0.69,204.52,204.47,12.22673252]
[1756821431680,8.05009262,204.5,204.47,12.22673252]
[1756821431882,0.69,204.49,204.46,4.89093221]
[1756821432051,8.05009262,204.47,204.43,4.89164995]
[1756821432247,8.05009262,204.45,204.43,4.89164995]
[1756821432578,8.74009262,204.44,204.43,4.89164995]
[1756821432965,0.28432314,204.55,204.43,4.89164995]
[1756821432966,8.05009262,204.47,204.43,4.89164995]
[1756821433170,8.74009262,204.46,204.41,17.12244997]
[1756821433350,8.74009262,204.45,204.41,17.12244997]
[1756821433561,0.69,204.44,204.41,17.12244997]
[1756821434079,8.74009262,204.43,204.4,9.91145683]
[1756821434280,0.69,204.47,204.42,8.05009262]
[1756821434479,0.06,204.56,204.4,17.12316558]
[1756821434645,8.05009262,204.49,204.4,17.12316558]
[1756821434985,8.05009262,204.46,204.4,22.06597438]
[1756821435280,8.05009262,204.41,204.4,9.8351236]
[1756821435604,8.74009262,204.43,204.4,4.8923148]
[1756821435869,8.05009262,204.41,204.4,4.8923148]
[1756821436055,8.05009262,204.41,204.39,4.92248207]
[1756821436056,8.74009262,204.41,204.39,4.92248207]
[1756821436258,8.74009262,204.4,204.39,0.03]
[1756821436460,8.74009262,204.4,204.39,4.92260727]
[1756821437061,0.69,204.4,204.39,4.92260727]
[1756821437258,8.74009262,204.4,204.39,0.03]
[1756821437475,12.84568456,204.4,204.39,0.03]
[1756821438257,0.69,204.4,204.39,0.03]
[1756821438555,12.84568456,204.4,204.39,0.03]
[1756821440565,12.84568456,204.4,204.38,11.411]
[1756821440760,26.44127857,204.39,204.38,9.971]
[1756821441262,31.61820898,204.39,204.38,9.971]
[1756821441717,14.56991715,204.39,204.38,9.971]
[1756821441993,31.61820898,204.39,204.38,9.971]
[1756821442386,12.84568456,204.39,204.38,9.971]
[1756821443800,0.69,204.45,204.38,14.86381606]
[1756821443971,12.15568456,204.39,204.38,9.971]
[1756821444301,12.84568456,204.39,204.38,9.971]
[1756821444509,0.69,204.42,204.38,9.971]
[1756821444702,12.15568456,204.4,204.38,9.971]
[1756821445222,0.14216157,204.45,204.38,9.971]
[1756821445223,12.15568456,204.39,204.38,9.971]
[1756821445518,0.69,204.42,204.38,9.971]
[1756821445686,12.15568456,204.39,204.38,9.971]
[1756821445889,12.84568456,204.39,204.38,9.971]
[1756821446197,26.44127857,204.39,204.38,9.971]
[1756821447182,0.69,204.44,204.38,9.971]
[1756821447495,12.15568456,204.4,204.38,14.86382643]
[1756821447700,12.15568456,204.41,204.38,14.86382643]
[1756821448196,12.15568456,204.4,204.38,9.971]
[1756821448385,12.84568456,204.39,204.38,9.971]
[1756821448584,12.15568456,204.39,204.38,10.001]
[1756821449485,12.84568456,204.39,204.38,10.001]
[1756821449686,12.15568456,204.39,204.38,10.001]
[1756821450212,0.75,204.42,204.38,10.001]
[1756821450507,12.15568456,204.39,204.38,10.001]
[1756821450806,0.06,204.42,204.38,10.711]
[1756821450986,0.06,204.42,204.39,12.86568456]
[1756821451385,0.06,204.42,204.4,5.6021939]
[1756821451812,0.06,204.42,204.38,10.001]
[1756821451813,12.15568456,204.41,204.38,10.001]
[1756821452015,12.15568456,204.39,204.38,10.001]
[1756821452197,12.84568456,204.39,204.38,10.001]
[1756821452396,26.44127857,204.39,204.38,10.001]
[1756821452790,12.84568456,204.39,204.38,10.001]
[1756821453311,0.06,204.42,204.38,10.711]
[1756821453506,0.06,204.42,204.38,10.001]
[1756821453507,12.15568456,204.39,204.38,10.001]
[1756821454231,0.06,204.42,204.38,27.75935596]
[1756821454393,0.06,204.42,204.39,12.86568456]
[1756821454716,1e-08,204.42,204.41,12.15568456]
[1756821455214,1e-08,204.42,204.41,0.71]
[1756821455419,1e-08,204.42,204.41,17.75781312]
[1756821458498,1e-08,204.42,204.41,5.60212856]
[1756821458699,1e-08,204.42,204.41,17.75781312]
[1756821458917,1e-08,204.42,204.41,5.60212856]
[1756821459296,1e-08,204.42,204.41,4.89212856]
[1756821459513,1e-08,204.42,204.39,4.89260727]
[1756821459714,1e-08,204.42,204.39,5.58260727]
[1756821460118,1e-08,204.42,204.4,0.69]
[1756821460639,1e-08,204.42,204.38,14.89380528]
[1756821460811,12.15568457,204.42,204.38,14.89380528]
[1756821461015,1e-08,204.42,204.39,0.69]
[1756821461220,1e-08,204.42,204.38,27.12592192]
[1756821461417,1e-08,204.42,204.38,27.81592192]
[1756821461622,12.15568457,204.42,204.38,14.89380528]
[1756821462029,1e-08,204.42,204.39,0.69]
[1756821462218,1e-08,204.42,204.38,27.12592192]
[1756821462538,12.15568456,204.41,204.38,14.89380528]
[1756821462839,12.15568456,204.39,204.38,10.001]
[1756821463008,0.71,204.4,204.38,10.001]
[1756821463208,12.15568456,204.4,204.38,14.89384665]
[1756821463539,12.15568457,204.42,204.38,15.58384665]
[1756821463847,1e-08,204.42,204.39,0.69]
[1756821464009,1e-08,204.42,204.38,14.89384665]
[1756821464209,1e-08,204.42,204.38,10.001]
[1756821464432,12.15568456,204.41,204.38,10.001]
[1756821464618,12.15568456,204.4,204.38,10.001]
[1756821464813,12.15568456,204.39,204.38,10.001]
[1756821465010,12.15568456,204.39,204.38,14.89384665]
[1756821465209,12.86568456,204.39,204.38,10.001]
[1756821465848,17.75829183,204.39,204.38,10.001]
[1756821466216,12.86568456,204.39,204.38,10.001]
[1756821468052,17.75829183,204.39,204.38,10.001]
[1756821468684,31.35388584,204.39,204.38,10.001]
[1756821468872,12.15568456,204.26,204.23,0.69]
[1756821469270,12.15568456,204.26,204.24,0.69]
[1756821469680,0.71,204.31,204.22,4.92660834]
[1756821470072,12.15568456,204.23,204.22,0.03]
[1756821470259,0.71,204.3,204.22,0.03]
[1756821470456,12.15568456,204.24,204.22,0.03]
[1756821470885,13.59559401,204.32,204.23,0.69]
[1756821471057,12.15568456,204.26,204.23,0.69]
[1756821471257,12.15568456,204.25,204.22,0.03]
[1756821471480,12.15568456,204.26,204.23,0.69]
[1756821471685,0.71,204.34,204.25,4.89596083]
[1756821471892,12.15568456,204.3,204.25,4.89596083]
[1756821472056,0.71,204.34,204.26,0.69]
[1756821472258,12.15568456,204.33,204.27,12.15568456]
[1756821472470,12.15568456,204.32,204.26,12.84568456]
[1756821472684,12.15568456,204.32,204.26,0.69]
[1756821472883,12.15568456,204.31,204.26,0.69]
[1756821473197,12.15568456,204.33,204.27,12.84568456]
[1756821473558,12.15568456,204.31,204.27,0.69]
[1756821474102,12.15568456,204.28,204.24,0.69]
[1756821474399,5.17718516,204.38,204.22,0.03]
[1756821474400,33.87991715,204.29,204.22,0.03]
[1756821474622,12.15568456,204.23,204.22,0.03]
[1756821474997,12.86568456,204.23,204.22,0.03]
[1756821476226,12.15568456,204.23,204.22,0.03]
[1756821476808,0.71,204.26,204.22,0.03]
[1756821477010,12.15568456,204.23,204.22,0.03]
[1756821477406,12.86568456,204.23,204.19,0.03]
[1756821477593,26.03560171,204.2,204.19,0.03]
[1756821477803,26.03560171,204.2,204.18,0.1]
[1756821477804,18.9194782,204.19,204.18,0.1]
[1756821478110,31.78516276,204.19,204.18,0.1]
[1756821478331,14.58991715,204.19,204.18,0.1]
[1756821478628,12.86568456,204.19,204.18,0.1]
[1756821479192,0.99432314,204.22,204.18,0.1]
[1756821479411,12.15568456,204.19,204.18,0.1]
[1756821479921,26.74560171,204.19,204.18,0.1]
[1756821480105,31.64300119,204.19,204.18,0.1]
[1756821480305,13.87991715,204.18,204.16,0.03]
[1756821480504,13.59559401,204.16,204.03,4.93119842]
[1756821480708,12.15568456,204.07,204.03,0.03]
[1756821481305,0.71,204.09,204.03,0.03]
[1756821481611,12.86568456,204.07,204.03,0.03]
[1756821481805,12.15568456,204.07,204.03,0.03]
[1756821482005,12.86568456,204.07,204.03,0.03]
[1756821482208,0.71,204.11,204.03,0.03]
[1756821482408,12.15568456,204.12,204.03,0.03]
[1756821482409,12.15568456,204.07,204.03,0.72]
[1756821482611,0.71,204.11,204.03,0.72]
[1756821482807,12.15568456,204.07,204.03,0.72]
[1756821483217,12.15568456,204.07,204.06,0.72]
[1756821483402,12.15568456,204.16,204.06,12.87568456]
[1756821483606,12.15568456,204.16,204.1,12.15568456]
[1756821483823,12.15568456,204.15,204.11,0.69]
[1756821484021,0.71,204.24,204.12,12.84568456]
[1756821484327,0.71,204.29,204.13,0.69]
[1756821484516,12.15568456,204.27,204.21,12.15568456]
[1756821484726,0.71,204.36,204.24,12.15568456]
[1756821484897,12.15568456,204.31,204.25,0.69]
[1756821485104,12.15568456,204.38,204.3,12.15568456]
[1756821485334,12.15568456,204.38,204.22,26.0]
[1756821485335,12.15568456,204.38,204.31,12.84568456]
[1756821485531,0.71000001,204.42,204.32,0.69]
[1756821485532,1e-08,204.42,204.32,0.69]
[1756821485705,1e-08,204.42,204.38,12.15568456]
[1756821485911,1e-08,204.42,204.39,0.69]
[1756821486134,12.21568456,204.41,204.39,4.89251632]
[1756821486307,12.21568456,204.41,204.37,5.58285223]
[1756821486629,12.15568456,204.39,204.36,4.89329975]
[1756821486820,12.15568456,204.39,204.35,4.89355801]
[1756821487030,12.15568456,204.38,204.31,12.15568456]
[1756821487337,12.15568456,204.37,204.33,0.69]
[1756821487514,12.15568456,204.38,204.34,0.69]
[1756821487827,12.15568456,204.37,204.34,0.69]
[1756821488023,12.15568456,204.35,204.32,0.69]
[1756821488221,12.15568456,204.33,204.28,0.69]
[1756821488430,12.15568456,204.32,204.29,0.69]
[1756821488633,0.71,204.39,204.27,12.15568456]
[1756821488817,0.06,204.41,204.31,12.15568456]
[1756821489134,12.15568456,204.4,204.34,12.15568456]
[1756821489313,12.15568456,204.4,204.35,0.67]
[1756821489520,0.06,204.41,204.36,0.67]
[1756821489724,0.06,204.41,204.38,12.18568456]
[1756821489922,0.06,204.41,204.39,5.56260727]
[1756821490234,0.06,204.41,204.39,0.67]
[1756821491037,12.15568456,204.4,204.38,0.03]
[1756821491344,0.06,204.41,204.38,0.03]
[1756821491555,0.75,204.41,204.38,0.03]
[1756821491938,12.15568456,204.39,204.38,0.03]
[1756821492267,17.04829183,204.39,204.38,0.03]
[1756821492548,17.73829183,204.39,204.38,0.03]
[1756821493335,31.33388584,204.39,204.38,0.03]
[1756821493540,31.33388584,204.39,204.33,0.03]
[1756821493541,13.59559401,204.38,204.33,0.03]
[1756821493754,12.15568456,204.34,204.33,0.03]
[1756821494442,0.69,204.37,204.33,0.03]
[1756821494655,12.15568456,204.34,204.33,0.03]
[1756821494838,12.15568456,204.35,204.33,0.03]
[1756821496153,12.15568456,204.34,204.33,0.03]
[1756821496527,12.84568456,204.34,204.33,0.03]
[1756821498357,12.15568456,204.34,204.33,0.03]
[1756821499319,12.84568456,204.34,204.33,0.03]
[1756821499529,8.75518469,204.34,204.33,0.03]
[1756821500030,8.06518469,204.34,204.33,0.03]
[1756821500229,8.75518469,204.34,204.33,0.03]
[1756821500542,22.3507787,204.34,204.33,0.03]
[1756821500773,27.24458314,204.34,204.33,0.03]
[1756821501040,13.59559401,204.33,204.23,0.67]
[1756821501341,8.06518469,204.25,204.23,0.67]
[1756821501647,8.06518469,204.29,204.23,8.73518469]
[1756821501829,8.06518469,204.29,204.24,0.67]
[1756821502030,8.06518469,204.29,204.25,0.67]
[1756821502246,8.75518469,204.36,204.27,4.89548147]
[1756821502550,8.06518469,204.29,204.27,4.89548147]
[1756821502745,12.29076267,204.41,204.28,0.67]
[1756821502925,8.06518469,204.32,204.28,0.67]
[1756821503256,8.06518469,204.32,204.29,0.67]
[1756821503422,0.69,204.39,204.21,8.06518469]
[1756821503423,8.06518469,204.36,204.21,8.06518469]
[1756821503628,8.06518469,204.25,204.22,0.67]
[1756821503926,8.06518469,204.24,204.22,0.67]
[1756821504430,8.06518469,204.23,204.2,0.67]
[1756821504646,8.06518469,204.23,204.21,0.67]
[1756821504847,0.69,204.31,204.22,0.67]
[1756821505046,8.06518469,204.26,204.22,0.67]
[1756821505246,8.06518469,204.27,204.23,0.67]
[1756821505462,0.69,204.34,204.24,0.67]
[1756821505661,8.06518469,204.29,204.24,0.67]
[1756821505870,8.06518469,204.29,204.25,0.67]
[1756821506283,8.06518469,204.29,204.27,4.89548147]
[1756821506778,0.69,204.34,204.27,4.89548147]
[1756821506948,8.06518469,204.28,204.27,4.89548147]
[1756821507270,8.06518469,204.28,204.25,4.89579652]
[1756821507496,8.06518469,204.27,204.25,4.89579652]
[1756821507776,8.06518469,204.26,204.22,5.56661981]
[1756821508085,8.06518469,204.23,204.22,4.89661981]
[1756821508376,0.69,204.26,204.14,17.14464048]
[1756821508581,13.59559401,204.33,204.17,26.67]
[1756821508871,8.06518469,204.23,204.18,0.67]
[1756821509074,8.06518469,204.23,204.2,0.03]
[1756821509250,8.06518469,204.23,204.21,0.67]
[1756821509449,8.06518469,204.24,204.21,0.67]
[1756821509851,8.06518469,204.24,204.22,0.67]
[1756821510051,8.06518469,204.25,204.22,0.67]
[1756821510350,0.69,204.29,204.23,5.56644028]
[1756821510351,8.06518469,204.26,204.23,5.56644028]
[1756821510551,8.06518469,204.28,204.24,0.67]
[1756821510784,21.6607787,204.36,204.24,0.67]
[1756821510785,0.69,204.35,204.25,0.67]
[1756821510962,8.06518469,204.3,204.25,0.67]
[1756821511164,0.69,204.35,204.25,0.67]
[1756821511365,8.06518469,204.29,204.25,0.67]
[1756821511563,8.06518469,204.28,204.25,0.67]
[1756821512273,12.95858631,204.36,204.23,17.13754099]
[1756821512274,8.06518469,204.26,204.23,17.13754099]
[1756821512474,8.06518469,204.25,204.23,4.89644028]
[1756821513383,0.69,204.34,204.24,0.67]
[1756821513565,8.06518469,204.29,204.24,0.67]
[1756821513770,8.06518469,204.27,204.24,0.67]
[1756821513971,8.06518469,204.27,204.23,17.13754099]
[1756821514290,8.06518469,204.26,204.23,5.56644028]
[1756821514573,0.69,204.3,204.2,4.92715964]
[1756821514574,4.8948127,204.3,204.2,4.92715964]
[1756821514784,8.06518469,204.21,204.2,0.03]
[1756821515354,8.75518469,204.21,204.2,0.03]
[1756821515560,8.06518469,204.21,204.2,0.03]
[1756821516163,8.06518469,204.21,204.2,0.7]
[1756821516367,0.69,204.29,204.2,0.7]
[1756821516586,8.06518469,204.22,204.2,5.59715964]
[1756821516770,8.06518469,204.22,204.2,4.92715964]
[1756821516978,8.06518469,204.23,204.2,5.59715964]
[1756821517378,8.06518469,204.22,204.2,4.92715964]
[1756821517578,8.06518469,204.21,204.2,0.03]
[1756821518380,8.75518469,204.21,204.2,0.03]
[1756821518581,27.53202167,204.21,204.2,0.03]
[1756821518966,22.63510184,204.21,204.2,0.03]
[1756821519389,27.53202167,204.21,204.12,0.1]
[1756821519693,8.06518469,204.13,204.12,0.1]
[1756821519997,0.28432314,204.2,204.12,0.1]
[1756821520187,8.06518469,204.13,204.12,0.1]
[1756821520683,8.76518469,204.13,204.12,0.1]
[1756821521263,8.76518469,204.13,204.06,0.03]
[1756821521264,35.6091255,204.13,204.06,0.03]
[1756821521465,8.06518469,204.07,204.06,0.03]
[1756821521893,8.76518469,204.07,204.06,0.03]
[1756821522264,0.7,204.07,204.06,0.03]
[1756821522465,0.7,204.11,204.06,0.03]
[1756821522885,8.06518469,204.07,204.06,0.03]
[1756821523386,8.76518469,204.07,204.06,0.03]
[1756821523895,0.7,204.11,204.06,0.03]
[1756821524284,39.87991715,204.15,204.06,0.03]
[1756821524285,8.06518469,204.07,204.06,0.03]
[1756821524999,0.7,204.07,204.06,0.03]
[1756821525203,8.06518469,204.07,204.06,0.03]
[1756821525706,0.7,204.1,204.06,0.03]
[1756821525998,8.06518469,204.07,204.06,0.03]
[1756821527608,8.76518469,204.12,204.06,0.03]
[1756821527897,8.06518469,204.07,204.06,0.03]
[1756821528105,8.06518469,204.08,204.06,0.03]
[1756821528406,8.06518469,204.1,204.07,0.7]
[1756821528567,8.06518469,204.11,204.06,0.03]
[1756821528893,13.59559401,204.17,204.06,0.03]
[1756821528894,8.06518469,204.1,204.08,0.7]